OrganisationNameLabel,OrganisationURI,EffectiveDate,PaymentDate,Directorate/ServiceWhereExpenditureIncurred,ServiceCategoryLabel,ServiceCategoryURI,Supplier,NetAmount,IrrecoverableVAT,PurposeOfExpenditure,ProcurementClassification:ProclassLabel,ProcrementClassification:ProClassCode
South Lakeland District Council,http://opendatacommunities.org/id/district-council/south-lakeland,25/05/2017,14/03/2017,Lake Wardens,Cultural Environmental Regulatory & Planning Services,http://opendatacommunities.org/def/concept/finance/sercop/objective/104,Marine Trans Ltd,200.00,0.00,Training Course 14th March 2017,Training & Conferences,261520
South Lakeland District Council,http://opendatacommunities.org/id/district-council/south-lakeland,25/05/2017,15/03/2017,Homelessness,Housing Services,http://opendatacommunities.org/def/concept/finance/sercop/objective/108,Riverside Hotel,62.10,0.00,Inrterim accommodation - PJ,Accommodation,261000
South Lakeland District Council,http://opendatacommunities.org/id/district-council/south-lakeland,25/05/2017,21/03/2017,Homelessness,Housing Services,http://opendatacommunities.org/def/concept/finance/sercop/objective/108,AG Gates,20.00,0.00,Travel warrant - LS,Sundries,341100
South Lakeland District Council,http://opendatacommunities.org/id/district-council/south-lakeland,25/05/2017,28/03/2017,Homelessness,Housing Services,http://opendatacommunities.org/def/concept/finance/sercop/objective/108,Premier Inn,130.83,0.00,Interim Accommodation - PH,Accommodation,261000
South Lakeland District Council,http://opendatacommunities.org/id/district-council/south-lakeland,25/05/2017,29/03/2017,Homelessness,Housing Services,http://opendatacommunities.org/def/concept/finance/sercop/objective/108,Premier Inn,-130.83,0.00,Interim Accommodation - refund,Accommodation,261000
South Lakeland District Council,http://opendatacommunities.org/id/district-council/south-lakeland,25/05/2017,07/03/2017,Parks and Open Spaces,Cultural Environmental Regulatory & Planning Services,http://opendatacommunities.org/def/concept/finance/sercop/objective/104,travis perkins,52.68,0.00,pavers,Playground Equipment Maintenance,331100
South Lakeland District Council,http://opendatacommunities.org/id/district-council/south-lakeland,25/05/2017,08/03/2017,Parks and Open Spaces,Cultural Environmental Regulatory & Planning Services,http://opendatacommunities.org/def/concept/finance/sercop/objective/104,luscombe plant hire,36.00,0.00,hi vis jacket,Protective,141100
South Lakeland District Council,http://opendatacommunities.org/id/district-council/south-lakeland,25/05/2017,10/03/2017,Parks and Open Spaces,Cultural Environmental Regulatory & Planning Services,http://opendatacommunities.org/def/concept/finance/sercop/objective/104,R S Online,14.67,0.00,socket cap screw M12 x 50mm,Playground Equipment Maintenance,331100
South Lakeland District Council,http://opendatacommunities.org/id/district-council/south-lakeland,25/05/2017,20/03/2017,Parks and Open Spaces,Cultural Environmental Regulatory & Planning Services,http://opendatacommunities.org/def/concept/finance/sercop/objective/104,lakeland supplies,19.90,0.00,grinder cutting discs,Playground Equipment Maintenance,331100
South Lakeland District Council,http://opendatacommunities.org/id/district-council/south-lakeland,25/05/2017,06/03/2017,Transport,Cultural Environmental Regulatory & Planning Services,http://opendatacommunities.org/def/concept/finance/sercop/objective/104,VOSA,100.00,0.00,Vehicle testing,Not Elsewhere Classified,389999
South Lakeland District Council,http://opendatacommunities.org/id/district-council/south-lakeland,25/05/2017,14/03/2017,Transport,Cultural Environmental Regulatory & Planning Services,http://opendatacommunities.org/def/concept/finance/sercop/objective/104,DVLA,200.00,0.00,Vehicle tax,Not Elsewhere Classified,389999
South Lakeland District Council,http://opendatacommunities.org/id/district-council/south-lakeland,25/05/2017,14/03/2017,Transport,Cultural Environmental Regulatory & Planning Services,http://opendatacommunities.org/def/concept/finance/sercop/objective/104,DVLA,2.50,0.00,Vehicle tax,Not Elsewhere Classified,389999
South Lakeland District Council,http://opendatacommunities.org/id/district-council/south-lakeland,25/05/2017,14/03/2017,Transport,Cultural Environmental Regulatory & Planning Services,http://opendatacommunities.org/def/concept/finance/sercop/objective/104,DVLA,650.00,0.00,Vehicle tax,Not Elsewhere Classified,389999
South Lakeland District Council,http://opendatacommunities.org/id/district-council/south-lakeland,25/05/2017,14/03/2017,Transport,Cultural Environmental Regulatory & Planning Services,http://opendatacommunities.org/def/concept/finance/sercop/objective/104,DVLA,2.50,0.00,Vehicle tax,Not Elsewhere Classified,389999
South Lakeland District Council,http://opendatacommunities.org/id/district-council/south-lakeland,25/05/2017,14/03/2017,Transport,Cultural Environmental Regulatory & Planning Services,http://opendatacommunities.org/def/concept/finance/sercop/objective/104,DVLA,650.00,0.00,Vehicle tax,Not Elsewhere Classified,389999
South Lakeland District Council,http://opendatacommunities.org/id/district-council/south-lakeland,25/05/2017,14/03/2017,Transport,Cultural Environmental Regulatory & Planning Services,http://opendatacommunities.org/def/concept/finance/sercop/objective/104,DVLA,2.50,0.00,Vehicle tax,Not Elsewhere Classified,389999
South Lakeland District Council,http://opendatacommunities.org/id/district-council/south-lakeland,25/05/2017,14/03/2017,Transport,Cultural Environmental Regulatory & Planning Services,http://opendatacommunities.org/def/concept/finance/sercop/objective/104,DVLA,650.00,0.00,Vehicle tax,Not Elsewhere Classified,389999
South Lakeland District Council,http://opendatacommunities.org/id/district-council/south-lakeland,25/05/2017,14/03/2017,Transport,Cultural Environmental Regulatory & Planning Services,http://opendatacommunities.org/def/concept/finance/sercop/objective/104,DVLA,2.50,0.00,Vehicle tax,Not Elsewhere Classified,389999
South Lakeland District Council,http://opendatacommunities.org/id/district-council/south-lakeland,25/05/2017,14/03/2017,Transport,Cultural Environmental Regulatory & Planning Services,http://opendatacommunities.org/def/concept/finance/sercop/objective/104,DVLA,650.00,0.00,Vehicle tax,Not Elsewhere Classified,389999
South Lakeland District Council,http://opendatacommunities.org/id/district-council/south-lakeland,25/05/2017,14/03/2017,Transport,Cultural Environmental Regulatory & Planning Services,http://opendatacommunities.org/def/concept/finance/sercop/objective/104,DVLA,2.50,0.00,Vehicle tax,Not Elsewhere Classified,389999
South Lakeland District Council,http://opendatacommunities.org/id/district-council/south-lakeland,25/05/2017,14/03/2017,Transport,Cultural Environmental Regulatory & Planning Services,http://opendatacommunities.org/def/concept/finance/sercop/objective/104,DVLA,650.00,0.00,Vehicle tax,Not Elsewhere Classified,389999
South Lakeland District Council,http://opendatacommunities.org/id/district-council/south-lakeland,25/05/2017,14/03/2017,Transport,Cultural Environmental Regulatory & Planning Services,http://opendatacommunities.org/def/concept/finance/sercop/objective/104,DVLA,2.50,0.00,Vehicle tax,Not Elsewhere Classified,389999
South Lakeland District Council,http://opendatacommunities.org/id/district-council/south-lakeland,25/05/2017,14/03/2017,Transport,Cultural Environmental Regulatory & Planning Services,http://opendatacommunities.org/def/concept/finance/sercop/objective/104,DVLA,650.00,0.00,Vehicle tax,Not Elsewhere Classified,389999
South Lakeland District Council,http://opendatacommunities.org/id/district-council/south-lakeland,25/05/2017,14/03/2017,Transport,Cultural Environmental Regulatory & Planning Services,http://opendatacommunities.org/def/concept/finance/sercop/objective/104,DVLA,2.50,0.00,Vehicle tax,Not Elsewhere Classified,389999
South Lakeland District Council,http://opendatacommunities.org/id/district-council/south-lakeland,25/05/2017,04/03/2017,Kerbside Recycling Contractor,Cultural Environmental Regulatory & Planning Services,http://opendatacommunities.org/def/concept/finance/sercop/objective/104,Optiport,80.00,0.00,Sound meter,Products,221000
South Lakeland District Council,http://opendatacommunities.org/id/district-council/south-lakeland,25/05/2017,04/03/2017,Kerbside Recycling Contractor,Cultural Environmental Regulatory & Planning Services,http://opendatacommunities.org/def/concept/finance/sercop/objective/104,Optiport,288.00,0.00,Sound meter,Products,221000
South Lakeland District Council,http://opendatacommunities.org/id/district-council/south-lakeland,25/05/2017,08/03/2017,Streetcare,Central Services,http://opendatacommunities.org/def/concept/finance/sercop/objective/102,Booths,8.58,0.00,Foodstuffs,Food & Beverages,111200
South Lakeland District Council,http://opendatacommunities.org/id/district-council/south-lakeland,25/05/2017,17/03/2017,Transport,Cultural Environmental Regulatory & Planning Services,http://opendatacommunities.org/def/concept/finance/sercop/objective/104,DVLA,200.00,0.00,Vehicle tax,Not Elsewhere Classified,389999
South Lakeland District Council,http://opendatacommunities.org/id/district-council/south-lakeland,25/05/2017,17/03/2017,Transport,Cultural Environmental Regulatory & Planning Services,http://opendatacommunities.org/def/concept/finance/sercop/objective/104,DVLA,2.50,0.00,Vehicle tax,Not Elsewhere Classified,389999
South Lakeland District Council,http://opendatacommunities.org/id/district-council/south-lakeland,25/05/2017,13/03/2017,Transport,Cultural Environmental Regulatory & Planning Services,http://opendatacommunities.org/def/concept/finance/sercop/objective/104,WasteParts UK,264.55,0.00,Valve,Parts,381500
South Lakeland District Council,http://opendatacommunities.org/id/district-council/south-lakeland,25/05/2017,06/03/2017,Homelessness,Housing Services,http://opendatacommunities.org/def/concept/finance/sercop/objective/108,LCS,29.72,0.00,Electricity charges,Gas,371100
South Lakeland District Council,http://opendatacommunities.org/id/district-council/south-lakeland,25/05/2017,14/03/2017,Homelessness,Housing Services,http://opendatacommunities.org/def/concept/finance/sercop/objective/108,Premier Inn,69.17,0.00,Emergency accommodation,Accommodation,261000
South Lakeland District Council,http://opendatacommunities.org/id/district-council/south-lakeland,25/05/2017,09/03/2017,Revenues and Benefits,Central Services,http://opendatacommunities.org/def/concept/finance/sercop/objective/102,Vodafone,4.17,0.00,Mobile Phone - Visiting Officers ,Telecommunications,271800
South Lakeland District Council,http://opendatacommunities.org/id/district-council/south-lakeland,25/05/2017,14/03/2017,Revenues and Benefits,Central Services,http://opendatacommunities.org/def/concept/finance/sercop/objective/102,GOV.UK,10.00,0.00,HMCTS Profesional services,Not Elsewhere Classified,209999
South Lakeland District Council,http://opendatacommunities.org/id/district-council/south-lakeland,25/05/2017,01/03/2017,Offices,Central Services,http://opendatacommunities.org/def/concept/finance/sercop/objective/102,Shoplet,65.76,0.00,Health & Safety Equipment - Fire Warden Board,Products,221000
South Lakeland District Council,http://opendatacommunities.org/id/district-council/south-lakeland,25/05/2017,02/03/2017,Development Implementation,Central Services,http://opendatacommunities.org/def/concept/finance/sercop/objective/102,Haymarket Publishing,382.20,0.00,IED North 2017 Event x 2 delegates,Training & Conferences,261510
South Lakeland District Council,http://opendatacommunities.org/id/district-council/south-lakeland,25/05/2017,06/03/2017,Economic Development,Cultural Environmental Regulatory & Planning Services,http://opendatacommunities.org/def/concept/finance/sercop/objective/104,"W Boyes & Co, Kendal",2.91,0.00,Equipment for Mintworks,Cleaning Materials,131000
South Lakeland District Council,http://opendatacommunities.org/id/district-council/south-lakeland,25/05/2017,08/03/2017,Economic Development,Cultural Environmental Regulatory & Planning Services,http://opendatacommunities.org/def/concept/finance/sercop/objective/104,"Family Affair, Kendal",79.00,0.00,Hire of Dinner Suit for Event,Not Elsewhere Classified,149999
South Lakeland District Council,http://opendatacommunities.org/id/district-council/south-lakeland,25/05/2017,19/03/2017,Economic Development,Cultural Environmental Regulatory & Planning Services,http://opendatacommunities.org/def/concept/finance/sercop/objective/104,www.UK2.net,38.94,0.00,Domain Names Renewal,Services,271515
South Lakeland District Council,http://opendatacommunities.org/id/district-council/south-lakeland,25/05/2017,21/03/2017,Asst Dir Social Enterprise,Central Services,http://opendatacommunities.org/def/concept/finance/sercop/objective/102,Travelodge,117.50,0.00,Event Accommodation - IH,Travel & Subsistence,261600
South Lakeland District Council,http://opendatacommunities.org/id/district-council/south-lakeland,25/05/2017,21/03/2017,Asst Dir Social Enterprise,Central Services,http://opendatacommunities.org/def/concept/finance/sercop/objective/102,Travelodge,115.83,0.00,Event Accommodation - ST,Travel & Subsistence,261600
South Lakeland District Council,http://opendatacommunities.org/id/district-council/south-lakeland,25/05/2017,24/03/2017,Economic Development,Cultural Environmental Regulatory & Planning Services,http://opendatacommunities.org/def/concept/finance/sercop/objective/104,Argos Ltd,14.58,0.00,Office equipment,Commercial,161000
South Lakeland District Council,http://opendatacommunities.org/id/district-council/south-lakeland,25/05/2017,06/03/2017,Community Services,Central Services,http://opendatacommunities.org/def/concept/finance/sercop/objective/102,Trainline,22.69,0.00,Rail tickets,Travel & Subsistence,261600
South Lakeland District Council,http://opendatacommunities.org/id/district-council/south-lakeland,25/05/2017,10/03/2017,Water Sampling,Cultural Environmental Regulatory & Planning Services,http://opendatacommunities.org/def/concept/finance/sercop/objective/104,Amazon,49.56,0.00,Equipment,Technical Equipment,181800
South Lakeland District Council,http://opendatacommunities.org/id/district-council/south-lakeland,25/05/2017,06/03/2017,Town View Field Hostel,Housing Services,http://opendatacommunities.org/def/concept/finance/sercop/objective/108,Kendal security,12.00,0.00,locks and cylinders,Security,192210
South Lakeland District Council,http://opendatacommunities.org/id/district-council/south-lakeland,25/05/2017,20/03/2017,Town View Field Hostel,Housing Services,http://opendatacommunities.org/def/concept/finance/sercop/objective/108,Kendal security,172.62,0.00,key cutting,Security,192210
South Lakeland District Council,http://opendatacommunities.org/id/district-council/south-lakeland,25/05/2017,23/03/2017,Town View Field Hostel,Housing Services,http://opendatacommunities.org/def/concept/finance/sercop/objective/108,Amazon,1.49,0.00,sticky dots,Sundries,341100
South Lakeland District Council,http://opendatacommunities.org/id/district-council/south-lakeland,25/05/2017,23/03/2017,Town View Field Hostel,Housing Services,http://opendatacommunities.org/def/concept/finance/sercop/objective/108,Amazon,8.87,0.00,UHT milk portions,Social Care,111230
South Lakeland District Council,http://opendatacommunities.org/id/district-council/south-lakeland,25/05/2017,23/03/2017,Town View Field Hostel,Housing Services,http://opendatacommunities.org/def/concept/finance/sercop/objective/108,Amazon,11.57,0.00,Biscuits,Social Care,111230
South Lakeland District Council,http://opendatacommunities.org/id/district-council/south-lakeland,25/05/2017,01/03/2017,ICT Group,Central Services,http://opendatacommunities.org/def/concept/finance/sercop/objective/102,Amazon,35.80,0.00,usb chargers (Non VAT company),Consumables,271100
South Lakeland District Council,http://opendatacommunities.org/id/district-council/south-lakeland,25/05/2017,12/03/2017,ICT Group,Central Services,http://opendatacommunities.org/def/concept/finance/sercop/objective/102,Amazon,5.95,0.00,USB Charger (non Vat),Consumables,271100
South Lakeland District Council,http://opendatacommunities.org/id/district-council/south-lakeland,25/05/2017,22/03/2017,Capital Information Technology,Capital Information Technology,http://opendatacommunities.org/def/concept/finance/sercop/objective/102,Software Box Ltd,4607.40,0.00,Monitors,Consumables,271100
South Lakeland District Council,http://opendatacommunities.org/id/district-council/south-lakeland,25/05/2017,02/03/2017,Kendal Depot,Transport,http://opendatacommunities.org/def/concept/finance/sercop/objective/107,Mark Simkin Ltd,4784.35,0.00,Lockers,Storage,192300
South Lakeland District Council,http://opendatacommunities.org/id/district-council/south-lakeland,25/05/2017,07/03/2017,Community Services,Central Services,http://opendatacommunities.org/def/concept/finance/sercop/objective/102,Amazon,30.25,0.00,Training books,Training & Conferences,261520
South Lakeland District Council,http://opendatacommunities.org/id/district-council/south-lakeland,25/05/2017,07/03/2017,Community Services,Central Services,http://opendatacommunities.org/def/concept/finance/sercop/objective/102,Amazon,12.08,0.00,Training books,Training & Conferences,261520
South Lakeland District Council,http://opendatacommunities.org/id/district-council/south-lakeland,25/05/2017,27/03/2017,Kendal Depot,Transport,http://opendatacommunities.org/def/concept/finance/sercop/objective/107,Boardsdirect,386.77,0.00,Brew room notioce boards,Not Elsewhere Classified,199999
South Lakeland District Council,http://opendatacommunities.org/id/district-council/south-lakeland,25/05/2017,07/03/2017,Lake Windermere,Cultural Environmental Regulatory & Planning Services,http://opendatacommunities.org/def/concept/finance/sercop/objective/104,C/Gas Kendal,58.55,0.00,Gas Bottle Shower unit ,Consumables,271100
South Lakeland District Council,http://opendatacommunities.org/id/district-council/south-lakeland,25/05/2017,07/03/2017,Lake Wardens,Cultural Environmental Regulatory & Planning Services,http://opendatacommunities.org/def/concept/finance/sercop/objective/104,Travel Lodge,93.23,0.00,Accomodation for course ,Travel & Subsistence,261600
South Lakeland District Council,http://opendatacommunities.org/id/district-council/south-lakeland,25/05/2017,09/03/2017,Car Parks,Highways & Transport Services,http://opendatacommunities.org/def/concept/finance/sercop/objective/107,Argos,19.99,0.00,1x Kettle multi/storey,Consumables,271100
South Lakeland District Council,http://opendatacommunities.org/id/district-council/south-lakeland,25/05/2017,13/03/2017,Car Parks,Highways & Transport Services,http://opendatacommunities.org/def/concept/finance/sercop/objective/107,Kendal Security,39.97,0.00,Combination Padlock Braithwaite Fold,Consumables,271100
South Lakeland District Council,http://opendatacommunities.org/id/district-council/south-lakeland,25/05/2017,16/03/2017,Car Parks,Highways & Transport Services,http://opendatacommunities.org/def/concept/finance/sercop/objective/107,Poundland,1.67,0.00,plastic containers,Not Elsewhere Classified,349999
South Lakeland District Council,http://opendatacommunities.org/id/district-council/south-lakeland,25/05/2017,22/03/2017,Car Parks,Highways & Transport Services,http://opendatacommunities.org/def/concept/finance/sercop/objective/107,Kendal Security Centre,7.92,0.00,personal alarm ,Not Elsewhere Classified,149999
South Lakeland District Council,http://opendatacommunities.org/id/district-council/south-lakeland,25/05/2017,03/03/2017,Housing Standards,Housing Services,http://opendatacommunities.org/def/concept/finance/sercop/objective/108,Job Vacancies Direct,23.99,0.00,PayPal - accounts@jobvacanciesdirect.com,Recruitment & Assessment,261300
South Lakeland District Council,http://opendatacommunities.org/id/district-council/south-lakeland,25/05/2017,03/03/2017,Housing Standards,Housing Services,http://opendatacommunities.org/def/concept/finance/sercop/objective/108,Reed Online Ltd,175.00,0.00,Senior Hsg Standards Off advert,Recruitment & Assessment,261300
South Lakeland District Council,http://opendatacommunities.org/id/district-council/south-lakeland,25/05/2017,08/03/2017,Financial Services,Central Services,http://opendatacommunities.org/def/concept/finance/sercop/objective/102,CIPFA,234.00,0.00,"CIPFA training, Leeds, SMcG",Not Elsewhere Classified,209999
South Lakeland District Council,http://opendatacommunities.org/id/district-council/south-lakeland,25/05/2017,15/03/2017,Training Costs,Central Services,http://opendatacommunities.org/def/concept/finance/sercop/objective/102,Clickapad,1800.00,0.00,Clickapad voting pads,Training & Conferences,261500
South Lakeland District Council,http://opendatacommunities.org/id/district-council/south-lakeland,25/05/2017,16/03/2017,Financial Services,Central Services,http://opendatacommunities.org/def/concept/finance/sercop/objective/102,Northern Trains,24.40,0.00,Train Lancaster to Leeds for SMcG,Travel & Subsistence,261600
South Lakeland District Council,http://opendatacommunities.org/id/district-council/south-lakeland,25/05/2017,22/03/2017,Financial Services,Central Services,http://opendatacommunities.org/def/concept/finance/sercop/objective/102,AAT,147.00,0.00,AAT membership TE,Not Elsewhere Classified,209999
South Lakeland District Council,http://opendatacommunities.org/id/district-council/south-lakeland,25/05/2017,31/03/2017,Financial Services,Central Services,http://opendatacommunities.org/def/concept/finance/sercop/objective/102,Kaplan Foulkes Lynch,23.00,0.00,AAT study books KO,Not Elsewhere Classified,209999
South Lakeland District Council,http://opendatacommunities.org/id/district-council/south-lakeland,25/05/2017,10/03/2017,Kendal Town Hall,Cultural Environmental Regulatory & Planning Services,http://opendatacommunities.org/def/concept/finance/sercop/objective/104,Middletons,4.99,0.00,White gaffer tape for KTH,General Materials,101400
South Lakeland District Council,http://opendatacommunities.org/id/district-council/south-lakeland,25/05/2017,14/03/2017,Kendal Town Hall,Cultural Environmental Regulatory & Planning Services,http://opendatacommunities.org/def/concept/finance/sercop/objective/104,Poundland,7.67,0.00,Biscuits for KTH,Food & Beverages,111200
South Lakeland District Council,http://opendatacommunities.org/id/district-council/south-lakeland,25/05/2017,14/03/2017,Kendal Town Hall,Cultural Environmental Regulatory & Planning Services,http://opendatacommunities.org/def/concept/finance/sercop/objective/104,Terralec,67.56,0.00,Lights for KTH,Technical Equipment,181800
South Lakeland District Council,http://opendatacommunities.org/id/district-council/south-lakeland,25/05/2017,15/03/2017,Kendal Market Hall,External Trading Accounts,http://opendatacommunities.org/def/concept/finance/sercop/objective/,Numatic,2.42,0.00,Part for floor cleaning machine,Cleaning Materials,131011
South Lakeland District Council,http://opendatacommunities.org/id/district-council/south-lakeland,25/05/2017,16/03/2017,Kendal Town Hall,Cultural Environmental Regulatory & Planning Services,http://opendatacommunities.org/def/concept/finance/sercop/objective/104,Iceland,5.00,0.00,Juice for KTH,Food & Beverages,111200
South Lakeland District Council,http://opendatacommunities.org/id/district-council/south-lakeland,25/05/2017,22/03/2017,Kendal Town Hall,Cultural Environmental Regulatory & Planning Services,http://opendatacommunities.org/def/concept/finance/sercop/objective/104,Boyes,15.00,0.00,Carbon Monoxide detector,Cleaning Materials,131011
South Lakeland District Council,http://opendatacommunities.org/id/district-council/south-lakeland,25/05/2017,29/03/2017,Kendal Town Hall,Cultural Environmental Regulatory & Planning Services,http://opendatacommunities.org/def/concept/finance/sercop/objective/104,Home Bargains ,8.32,0.00,Biscuits for KTH,Food & Beverages,111200
South Lakeland District Council,http://opendatacommunities.org/id/district-council/south-lakeland,25/05/2017,28/02/2017,Customer Services,Central Services,http://opendatacommunities.org/def/concept/finance/sercop/objective/102,banner,87.56,0.00,stationery,Sundries,341100
South Lakeland District Council,http://opendatacommunities.org/id/district-council/south-lakeland,25/05/2017,02/03/2017,Customer Services,Central Services,http://opendatacommunities.org/def/concept/finance/sercop/objective/102,esedirect,90.63,0.00,stationery,Sundries,341100
South Lakeland District Council,http://opendatacommunities.org/id/district-council/south-lakeland,25/05/2017,09/03/2017,Printing Section,Central Services,http://opendatacommunities.org/def/concept/finance/sercop/objective/102,esedirect,196.94,0.00,stationery,Sundries,341100
South Lakeland District Council,http://opendatacommunities.org/id/district-council/south-lakeland,25/05/2017,13/03/2017,Customer Services,Central Services,http://opendatacommunities.org/def/concept/finance/sercop/objective/102,banner,1.12,0.00,stationery,Sundries,341100
South Lakeland District Council,http://opendatacommunities.org/id/district-council/south-lakeland,25/05/2017,13/03/2017,Customer Services,Central Services,http://opendatacommunities.org/def/concept/finance/sercop/objective/102,banner,67.82,0.00,stationery,Sundries,341100
South Lakeland District Council,http://opendatacommunities.org/id/district-council/south-lakeland,25/05/2017,21/03/2017,Customer Services,Central Services,http://opendatacommunities.org/def/concept/finance/sercop/objective/102,viking,141.74,0.00,stationery,Sundries,341100
South Lakeland District Council,http://opendatacommunities.org/id/district-council/south-lakeland,25/05/2017,23/03/2017,Customer Services,Central Services,http://opendatacommunities.org/def/concept/finance/sercop/objective/102,m&s,76.50,0.00,uniforms,Uniforms,141300
South Lakeland District Council,http://opendatacommunities.org/id/district-council/south-lakeland,25/05/2017,24/03/2017,Customer Services,Central Services,http://opendatacommunities.org/def/concept/finance/sercop/objective/102,banner,51.79,0.00,stationery,Sundries,341100
South Lakeland District Council,http://opendatacommunities.org/id/district-council/south-lakeland,25/05/2017,27/03/2017,Customer Services,Central Services,http://opendatacommunities.org/def/concept/finance/sercop/objective/102,viking,159.00,0.00,stationery,Sundries,341100
South Lakeland District Council,http://opendatacommunities.org/id/district-council/south-lakeland,25/05/2017,30/03/2017,Customer Services,Central Services,http://opendatacommunities.org/def/concept/finance/sercop/objective/102,viking,48.33,0.00,stationery,Sundries,341100
South Lakeland District Council,http://opendatacommunities.org/id/district-council/south-lakeland,25/05/2017,08/03/2017,Financial Services,Central Services,http://opendatacommunities.org/def/concept/finance/sercop/objective/102,Boyes,7.52,0.00,Maison Mixers pack 3 glasses & Plastic bags,Training & Conferences,261500
South Lakeland District Council,http://opendatacommunities.org/id/district-council/south-lakeland,25/05/2017,13/03/2017,Cemeteries Office,Central Services,http://opendatacommunities.org/def/concept/finance/sercop/objective/102,Fast print,100.88,0.00,Gloss Window Stickers,Sundries,341100
South Lakeland District Council,http://opendatacommunities.org/id/district-council/south-lakeland,25/05/2017,20/03/2017,"Noise, Air and Water Pollution",Cultural Environmental Regulatory & Planning Services,http://opendatacommunities.org/def/concept/finance/sercop/objective/104,British Water,60.00,0.00,Sewerage Course - AC,Training & Conferences,261520
South Lakeland District Council,http://opendatacommunities.org/id/district-council/south-lakeland,25/05/2017,21/03/2017,Cemeteries Office,Central Services,http://opendatacommunities.org/def/concept/finance/sercop/objective/102,Amazon,18.00,0.00,Delivering Public Service - Book for FI,Training & Conferences,261500
South Lakeland District Council,http://opendatacommunities.org/id/district-council/south-lakeland,25/05/2017,21/03/2017,Cemeteries Office,Central Services,http://opendatacommunities.org/def/concept/finance/sercop/objective/102,Amazon,3.50,0.00,Freedom from Command - Book for FI,Training & Conferences,261500
South Lakeland District Council,http://opendatacommunities.org/id/district-council/south-lakeland,25/05/2017,27/03/2017,"Noise, Air and Water Pollution",Cultural Environmental Regulatory & Planning Services,http://opendatacommunities.org/def/concept/finance/sercop/objective/104,123 Reg,7.99,0.00,Domain Renewal - Go Easy,Subscriptions,202100
South Lakeland District Council,http://opendatacommunities.org/id/district-council/south-lakeland,25/05/2017,07/03/2017,Cemeteries Office,Central Services,http://opendatacommunities.org/def/concept/finance/sercop/objective/102,First/ Keolis Trains,45.50,0.00,Rail tickets,Travel & Subsistence,261600
South Lakeland District Council,http://opendatacommunities.org/id/district-council/south-lakeland,25/05/2017,13/03/2017,Financial Services,Central Services,http://opendatacommunities.org/def/concept/finance/sercop/objective/102,Virgin Trains,22.30,0.00,Train tickets - PM,Travel & Subsistence,261600
South Lakeland District Council,http://opendatacommunities.org/id/district-council/south-lakeland,25/05/2017,13/03/2017,Financial Services,Central Services,http://opendatacommunities.org/def/concept/finance/sercop/objective/102,CIPS,77.52,0.00,CIPS Exam - PM,Subscriptions,202100
South Lakeland District Council,http://opendatacommunities.org/id/district-council/south-lakeland,25/05/2017,17/03/2017,Financial Services,Central Services,http://opendatacommunities.org/def/concept/finance/sercop/objective/102,Virgin Trains,27.90,0.00,Train tickets - PM,Travel & Subsistence,261600
South Lakeland District Council,http://opendatacommunities.org/id/district-council/south-lakeland,25/05/2017,16/03/2017,Homelessness,Housing Services,http://opendatacommunities.org/def/concept/finance/sercop/objective/108,Riverside Hotel ,51.75,0.00,interim accomodation at Riverside Hotel,Accommodation,261000
South Lakeland District Council,http://opendatacommunities.org/id/district-council/south-lakeland,25/05/2017,17/03/2017,Homelessness,Housing Services,http://opendatacommunities.org/def/concept/finance/sercop/objective/108,Travelodge ,375.00,0.00, interim accomodation at Travelodge Morcambe,Accommodation,261000
South Lakeland District Council,http://opendatacommunities.org/id/district-council/south-lakeland,25/05/2017,21/03/2017,Homelessness,Housing Services,http://opendatacommunities.org/def/concept/finance/sercop/objective/108,South Lakes Housing,181.62,0.00,SLH rent in advance ,Housing Association Services,250005
South Lakeland District Council,http://opendatacommunities.org/id/district-council/south-lakeland,25/05/2017,22/03/2017,Homelessness,Housing Services,http://opendatacommunities.org/def/concept/finance/sercop/objective/108,Ulverston Medical services,50.00,0.00,medical information request ,Not Elsewhere Classified,259999
South Lakeland District Council,http://opendatacommunities.org/id/district-council/south-lakeland,25/05/2017,24/03/2017,Homelessness,Housing Services,http://opendatacommunities.org/def/concept/finance/sercop/objective/108,Airey's of Kendal ,15.25,0.00,gas for social lettings property ,Not Elsewhere Classified,259999
South Lakeland District Council,http://opendatacommunities.org/id/district-council/south-lakeland,25/05/2017,27/03/2017,Homelessness,Housing Services,http://opendatacommunities.org/def/concept/finance/sercop/objective/108,Premier Inn,128.75,0.00,interim accomodation at Premier Inn Kendal,Accommodation,261000
South Lakeland District Council,http://opendatacommunities.org/id/district-council/south-lakeland,25/05/2017,24/03/2017,ICT Group,Central Services,http://opendatacommunities.org/def/concept/finance/sercop/objective/102,ADMI Ltd,2489.82,0.00,Computers for Print Room,Hardware,271200
South Lakeland District Council,http://opendatacommunities.org/id/district-council/south-lakeland,25/05/2017,29/03/2017,Information Services,Central Services,http://opendatacommunities.org/def/concept/finance/sercop/objective/102,Holiday Inn Express,178.56,0.00,Hotel Accom June 2017 - Vat Receipt to follow after stay,Accommodation,261000
South Lakeland District Council,http://opendatacommunities.org/id/district-council/south-lakeland,25/05/2017,01/03/2017,Members,Central Services,http://opendatacommunities.org/def/concept/finance/sercop/objective/102,Info Commissioner's Office ,35.00,0.00,ICO Renewal ,Subscriptions,202100
South Lakeland District Council,http://opendatacommunities.org/id/district-council/south-lakeland,25/05/2017,14/03/2017,Research and Intelligence,Central Services,http://opendatacommunities.org/def/concept/finance/sercop/objective/102,Swinton Hotel ,76.00,0.00,Accomodation ,Accommodation,261000
South Lakeland District Council,http://opendatacommunities.org/id/district-council/south-lakeland,25/05/2017,15/03/2017,Research and Intelligence,Central Services,http://opendatacommunities.org/def/concept/finance/sercop/objective/102,Burger King ,5.16,0.00,Refreshments ,Food & Beverages,111200
South Lakeland District Council,http://opendatacommunities.org/id/district-council/south-lakeland,25/05/2017,28/03/2017,Management Team,Central Services,http://opendatacommunities.org/def/concept/finance/sercop/objective/102,Trainline ,101.44,0.00,Train Tickets ,Travel & Subsistence,261600
South Lakeland District Council,http://opendatacommunities.org/id/district-council/south-lakeland,25/05/2017,28/03/2017,Partnerships and Communities,Cultural Environmental Regulatory & Planning Services,http://opendatacommunities.org/def/concept/finance/sercop/objective/104,EH Booths ,9.85,0.00,Refreshments ,Food & Beverages,111200
South Lakeland District Council,http://opendatacommunities.org/id/district-council/south-lakeland,25/05/2017,29/03/2017,Partnerships and Communities,Cultural Environmental Regulatory & Planning Services,http://opendatacommunities.org/def/concept/finance/sercop/objective/104,Castle Embroidery ,52.00,0.00,Sporting Goods ,Uniforms,141300
South Lakeland District Council,http://opendatacommunities.org/id/district-council/south-lakeland,25/05/2017,30/03/2017,Partnerships and Communities,Cultural Environmental Regulatory & Planning Services,http://opendatacommunities.org/def/concept/finance/sercop/objective/104,Kendal Catering ,60.00,0.00,Refreshments ,Food & Beverages,111200
